bitfinex/quotes_SOLUSD_20220129
["timestamp","ask_amount","ask_price","bid_price","bid_amount"]
[1643468506159,2.95669142,94.485,94.339,36.93178208]
[1643468506360,17.59064682,94.514,94.339,36.93178208]
[1643468506361,17.59064682,94.514,94.35,12.51]
[1643468506562,17.59064682,94.514,94.363,0.31961145]
[1643468506960,17.59064682,94.514,94.361,39.37935508]
[1643468507160,2.95669142,94.525,94.361,39.62935508]
[1643468507362,179.74403834,94.49,94.361,39.37935508]
[1643468507567,15.892,94.49,94.361,39.37935508]
[1643468508066,150.22492903,94.563,94.361,39.37935508]
[1643468508265,150.22492903,94.563,94.367,0.3023518]
[1643468508461,15.889,94.51,94.381,40.50875723]
[1643468508661,15.889,94.51,94.39,12.51]
[1643468508861,2.95669142,94.509,94.39,12.51]
[1643468509264,17.50231587,94.527,94.4,12.51]
[1643468509462,15.391,94.5,94.41,12.51]
[1643468509662,15.391,94.5,94.401,35.12897292]
[1643468509864,15.391,94.5,94.37,12.51]
[1643468510067,15.391,94.5,94.34,2.60088771]
[1643468510068,19.86495926,94.499,94.34,12.51]
[1643468510263,19.86495926,94.499,94.32,12.51]
[1643468510462,19.91720346,94.498,94.32,12.51]
[1643468510669,15.909,94.44,94.321,2.60088771]
[1643468510905,15.909,94.44,94.321,47.32043166]
[1643468511268,15.909,94.44,94.322,0.25]
[1643468511468,15.909,94.44,94.322,23.03529135]
[1643468511667,15.909,94.44,94.322,22.78529135]
[1643468511870,15.909,94.44,94.321,44.71954395]
[1643468512468,15.909,94.44,94.322,2.60088771]
[1643468512867,15.898,94.46,94.323,10.4804931]
[1643468513068,154.60072591,94.609,94.341,38.82850578]
[1643468513069,103.0,94.604,94.341,38.82850578]
[1643468513270,103.0,94.604,94.361,40.84649272]
[1643468513468,18.0638234,94.566,94.37,12.51]
[1643468513669,168.28875243,94.563,94.37,18.51]
[1643468513968,168.28875243,94.563,94.371,23.88846204]
[1643468514267,15.888,94.52,94.372,98.30677433]
[1643468514490,15.888,94.52,94.372,100.90766204]
[1643468514667,15.888,94.52,94.373,23.49185093]
[1643468514872,15.888,94.52,94.381,40.32008884]
[1643468515073,15.888,94.52,94.39,28.396]
[1643468515672,15.888,94.52,94.391,23.74653801]
[1643468516070,15.888,94.52,94.392,23.49653801]
[1643468516270,52.963,94.54,94.394,65.0]
[1643468516470,150.22492903,94.563,94.401,40.73635563]
[1643468516671,150.22492903,94.563,94.411,0.30837202]
[1643468516978,15.882,94.56,94.401,40.73635563]
[1643468517174,61.8,94.549,94.401,40.73635563]
[1643468517371,12.51,94.55,94.401,40.73635563]
[1643468517772,2.0,108.58,94.401,40.73635563]
[1643468517773,12.24440092,94.548,94.401,40.73635563]
[1643468517972,2.95669142,94.549,94.41,12.51]
[1643468518173,14.1982846,94.582,94.41,12.51]
[1643468518573,210.52102906,94.518,94.41,12.51]
[1643468519274,15.882,94.55,94.412,65.0]
[1643468519475,15.882,94.55,94.421,34.45737659]
[1643468519683,15.882,94.55,94.43,12.51]
[1643468520078,28.86754318,94.55,94.43,12.51]
[1643468520280,28.86754318,94.55,94.421,34.45737659]
[1643468520476,15.892,94.52,94.421,34.45737659]
[1643468521278,5.0,108.53,94.421,34.45737659]
[1643468521279,12.51,94.6,94.421,34.45737659]
[1643468521478,156.39,94.68,94.421,34.45737659]
[1643468521479,12.51,94.61,94.421,34.45737659]
[1643468521682,15.884,94.54,94.421,34.45737659]
[1643468522682,2.95669142,94.539,94.421,34.45737659]
[1643468522887,15.894,94.51,94.421,34.45737659]
[1643468523682,12.51,94.58,94.421,34.45737659]
[1643468523883,12.51,94.57,94.421,34.45737659]
[1643468524084,15.888,94.52,94.421,34.45737659]
[1643468524285,15.888,94.52,94.422,0.25]
[1643468524485,15.888,94.52,94.43,12.51]
[1643468524887,15.888,94.52,94.421,34.45737659]
[1643468526320,15.888,94.52,94.43,12.51]
[1643468526512,10.69361002,94.569,94.431,65.0]
[1643468526712,4.11651103,94.631,94.431,65.25]
[1643468526913,10.69361002,94.611,94.432,78.7411]
[1643468527414,10.69361002,94.611,94.433,0.25]
[1643468527615,15.879,94.58,94.433,0.25]
[1643468527813,15.879,94.58,94.432,81.34961558]
[1643468528013,14.879,94.58,94.433,0.25]
[1643468528216,14.879,94.58,94.432,2.60851558]
[1643468528417,14.879,94.58,94.433,2.60851558]
[1643468528616,17.94826784,94.579,94.43,12.51]
[1643468528815,15.888,94.54,94.43,12.51]
[1643468530518,15.885,94.54,94.43,12.51]
[1643468530918,15.885,94.54,94.431,0.25]
[1643468531121,52.934,94.59,94.431,0.25]
[1643468531717,15.881,94.56,94.431,103.0]
[1643468532117,2.95669142,94.559,94.431,103.0]
[1643468532528,191.51125987,94.605,94.44,156.39]
[1643468532717,191.51125987,94.605,94.45,168.9]
[1643468532920,26.80641796,94.605,94.461,61.8]
[1643468533121,4.11651103,94.683,94.49,156.39]
[1643468533321,2.73298219,94.706,94.51,15.865]
[1643468533527,35.79212777,94.694,94.52,168.9]
[1643468533723,2.73298219,94.693,94.521,103.0]
[1643468533921,15.86,94.68,94.53,156.39]
[1643468534121,41.86503969,94.679,94.54,12.51]
[1643468534322,15.86,94.68,94.541,0.25]
[1643468534735,15.86,94.68,94.541,2.86424324]
[1643468534926,15.86,94.68,94.542,105.61424324]
[1643468535127,15.857,94.71,94.542,105.61424324]
[1643468535325,34.93121185,94.709,94.543,20.94676344]
[1643468535526,15.857,94.71,94.55,15.856]
[1643468535725,15.857,94.71,94.56,12.51]
[1643468535926,200.40018183,94.726,94.561,103.0]
[1643468536125,200.40018183,94.726,94.58,156.39]
[1643468536328,200.40018183,94.726,94.591,103.0]
[1643468536536,200.40018183,94.726,94.6,28.357]
[1643468536726,200.40018183,94.726,94.6,184.747]
[1643468536928,200.40018183,94.726,94.6,168.9]
[1643468537433,15.853,94.73,94.601,0.25]
[1643468538028,45.89892796,94.739,94.601,0.25]
[1643468538228,45.89892796,94.739,94.601,103.0]
[1643468538728,45.89892796,94.739,94.6,12.51]
[1643468538934,45.89892796,94.739,94.562,23.924]
[1643468539230,2.95669142,94.738,94.563,103.0]
[1643468539434,15.853,94.73,94.57,12.51]
[1643468539833,15.853,94.73,94.571,103.0]
[1643468540034,15.853,94.73,94.571,123.69676344]
[1643468540236,15.853,94.73,94.572,0.25]
[1643468540432,15.853,94.73,94.58,6.0]
[1643468540632,15.853,94.73,94.562,23.924]
[1643468540838,2.95669142,94.729,94.562,23.924]
[1643468541136,45.45573683,94.689,94.57,12.51]
[1643468541633,45.45573683,94.689,94.55,12.51]
[1643468541832,11.96210701,94.688,94.55,12.51]
[1643468542033,11.96210701,94.688,94.52,12.51]
[1643468542236,11.96210701,94.688,94.53,12.51]
[1643468542436,184.62210307,94.68,94.53,13.59]
[1643468542636,184.62210307,94.68,94.491,21.31644781]
[1643468542637,184.62210307,94.68,94.491,18.70100268]
[1643468542840,15.864,94.66,94.52,6.0]
[1643468543040,33.01841273,94.659,94.52,18.51]
[1643468543238,44.98051974,94.659,94.52,18.51]
[1643468543443,44.98051974,94.659,94.521,103.0]
[1643468543840,196.58421008,94.68,94.521,103.0]
[1643468544040,15.867,94.65,94.521,103.0]
[1643468544438,15.867,94.65,94.53,12.51]
[1643468544874,196.58421008,94.68,94.53,12.51]
[1643468545269,196.58421008,94.68,94.531,103.0]
[1643468545471,15.862,94.67,94.53,12.51]
[1643468545870,34.29867468,94.669,94.51,12.51]
[1643468546165,37.2553661,94.669,94.52,6.0]
[1643468546365,11.96210701,94.668,94.52,6.0]
[1643468546566,15.871,94.63,94.51,12.51]
[1643468546766,40.38911783,94.629,94.439,118.5284]
[1643468546974,40.38911783,94.629,94.47,12.51]
[1643468547264,11.96210701,94.628,94.47,12.51]
[1643468547464,14.91879843,94.628,94.47,12.51]
[1643468547665,2.95669142,94.627,94.47,12.51]
[1643468547864,14.41879843,94.627,94.47,12.51]
[1643468548068,11.96210701,94.626,94.47,12.51]
[1643468548264,15.878,94.59,94.471,103.0]
[1643468549265,15.878,94.59,94.47,12.51]
[1643468549865,15.878,94.59,94.471,103.0]
[1643468550065,166.44705933,94.593,94.471,103.0]
[1643468550266,166.44705933,94.593,94.472,0.25]
[1643468550668,166.44705933,94.593,94.471,103.0]
[1643468550866,166.44705933,94.593,94.472,0.25]
[1643468551666,166.44705933,94.593,94.47,12.51]
[1643468552067,166.44705933,94.593,94.471,0.25]
[1643468552566,149.04573874,94.656,94.472,2.60418441]
[1643468552766,149.04573874,94.656,94.473,0.25]
[1643468552966,15.873,94.62,94.473,0.25]
[1643468553469,15.873,94.62,94.474,2.60418441]
[1643468553665,15.873,94.62,94.48,12.51]
[1643468553865,15.873,94.62,94.481,103.25]
[1643468554264,14.3929,94.62,94.481,103.25]
[1643468554466,149.04573874,94.656,94.484,61.8]
[1643468554467,15.867,94.65,94.484,61.8]
[1643468554666,149.04573874,94.656,94.493,103.0]
[1643468554866,149.04573874,94.656,94.505,0.31232611]
[1643468555069,149.04573874,94.656,94.511,61.8]
[1643468555268,149.04573874,94.656,94.512,0.25]
[1643468555468,149.04573874,94.656,94.521,6.0]
[1643468555667,138.04573874,94.656,94.53,12.51]
[1643468555880,138.04573874,94.656,94.531,103.25]
[1643468556070,138.04573874,94.656,94.541,6.0]
[1643468556274,138.04573874,94.656,94.55,12.51]
[1643468556669,138.04573874,94.656,94.56,6.0]
[1643468556870,138.04573874,94.656,94.57,12.51]
[1643468557571,15.86,94.69,94.57,12.51]
[1643468557771,15.86,94.69,94.571,103.0]
[1643468557969,15.856,94.71,94.571,105.60418441]
[1643468558171,2.70277321,94.743,94.572,2.60418441]
[1643468558374,133.97515763,94.749,94.573,75.663]
[1643468558573,133.97515763,94.749,94.573,94.54178046]
[1643468558774,133.97515763,94.749,94.574,2.60418441]
[1643468559174,41.1862437,94.748,94.575,0.25]
[1643468559372,43.91389034,94.748,94.59,12.51]
[1643468559573,2.72764664,94.747,94.591,103.0]
[1643468559875,133.97515763,94.749,94.591,124.48310334]
[1643468560073,133.97515763,94.749,94.601,6.0]
[1643468560277,133.97515763,94.749,94.61,12.51]
[1643468560476,133.97515763,94.749,94.611,103.0]
[1643468560674,46.05725562,94.748,94.61,12.51]
[1643468560877,15.851,94.74,94.611,103.0]
[1643468561674,133.97515763,94.749,94.612,2.60432288]
[1643468561876,133.97515763,94.749,94.612,22.24421445]
[1643468562074,133.97515763,94.749,94.623,103.0]
[1643468562375,133.97515763,94.749,94.63,12.51]
[1643468562576,33.69229372,94.748,94.63,12.51]
[1643468563677,33.69229372,94.748,94.622,6.0]
[1643468563678,15.853,94.74,94.622,6.0]
[1643468563881,28.363,94.74,94.51,156.39]
[1643468564079,2.70277321,94.738,94.58,12.51]
[1643468564280,5.4322952,94.738,94.58,12.51]
[1643468564478,15.861,94.7,94.58,12.51]
[1643468564678,40.26980028,94.699,94.58,12.51]
[1643468564884,40.26980028,94.699,94.581,103.0]
[1643468565079,2.70277321,94.736,94.581,103.0]
[1643468565279,2.70277321,94.742,94.581,105.60432288]
[1643468565479,2.70277321,94.748,94.581,103.0]
[1643468565679,5.43301099,94.748,94.581,103.0]
[1643468565885,2.73023778,94.748,94.582,0.25]
[1643468566080,61.70240555,94.72,94.581,121.54933601]
[1643468566281,15.854,94.72,94.583,18.54933601]
[1643468566781,2.70277321,94.759,94.59,156.39]
[1643468566980,105.669,95.01,94.601,61.8]
[1643468566981,2.70277321,94.78,94.601,61.8]
[1643468567181,15.846,94.78,94.602,103.0]
[1643468567384,15.846,94.78,94.63,156.39]
[1643468567581,15.846,94.78,94.64,168.9]
[1643468567782,0.05994904,94.794,94.64,168.9]
[1643468567982,2.70277321,94.788,94.64,168.9]
[1643468568182,2.95669142,94.765,94.64,168.9]
[1643468568484,2.70277321,94.779,94.64,168.9]
[1643468568682,0.05994904,94.794,94.64,12.51]
[1643468568683,15.849,94.75,94.64,12.51]
[1643468568886,15.849,94.75,94.641,0.25]
[1643468569084,2.70277321,94.79,94.641,0.25]
[1643468569283,2.70277321,94.792,94.641,0.25]
[1643468569485,40.16652179,94.766,94.64,12.51]
[1643468569684,2.70277321,94.792,94.641,0.25]
[1643468569885,15.848,94.76,94.64,12.51]
[1643468570286,15.848,94.76,94.553,15.7517]
[1643468570586,38.2719118,94.759,94.588,18.53850268]
[1643468570790,38.2719118,94.759,94.6,12.51]
[1643468570791,1.36305235,94.747,94.6,12.51]
[1643468570989,44.77310715,94.739,94.601,103.0]
[1643468571689,15.85,94.74,94.603,103.0]
[1643468571888,1.36305235,94.763,94.61,156.39]
[1643468572090,1.36305235,94.763,94.621,103.0]
[1643468572289,1.36305235,94.771,94.63,12.51]
[1643468572488,184.52776121,94.775,94.631,103.0]
[1643468572489,1.36305235,94.772,94.631,103.0]
[1643468572693,41.21330482,94.769,94.631,105.59905493]
[1643468572889,41.21330482,94.769,94.632,18.78850268]
[1643468573089,41.21330482,94.769,94.633,103.0]
[1643468573288,41.21330482,94.769,94.634,0.25]
[1643468573500,41.21330482,94.769,94.633,103.0]
[1643468573689,1.36305235,94.777,94.634,18.53850268]
[1643468573891,1.36305235,94.784,94.635,103.0]
[1643468574088,15.846,94.77,94.65,12.51]
[1643468574289,15.846,94.77,94.651,103.0]
[1643468574888,15.846,94.77,94.652,0.25]
[1643468575289,15.846,94.77,94.652,18.78344712]
[1643468575591,1.36305235,94.79,94.653,65.0]
[1643468575790,1.36305235,94.804,94.66,156.39]
[1643468575992,1.36305235,94.813,94.67,174.9]
[1643468576195,1.36305235,94.813,94.68,168.9]
[1643468576392,1.36305235,94.825,94.7,156.39]
[1643468576590,1.36305235,94.83,94.71,18.51]
[1643468576790,1.36305235,94.838,94.711,0.25]
[1643468576992,1.36305235,94.834,94.711,103.0]
[1643468577192,1.36305235,94.831,94.711,105.59905493]
[1643468577392,197.8316857,94.835,94.721,6.0]
[1643468577596,196.46863335,94.835,94.73,12.51]
[1643468577791,24.69,94.891,94.73,12.51]
[1643468577792,1.36305235,94.86,94.73,12.51]
[1643468577992,0.00994904,94.794,94.731,105.59905493]
[1643468578198,17.19073585,94.911,94.741,65.0]
[1643468578395,4.07936355,94.924,94.797,0.05994904]
[1643468578598,0.39745604,94.988,94.824,0.09376784]
[1643468578599,4.07936355,94.979,94.824,0.09376784]
[1643468578795,4.07936355,94.979,94.788,0.32161517]
[1643468578796,0.39745604,94.988,94.86,156.39]
[1643468578995,0.39745604,94.988,94.88,156.39]
[1643468579234,0.39745604,94.988,94.891,103.0]
[1643468579395,0.00252882,94.96,94.9,12.51]
[1643468579595,0.00252882,94.96,94.91,6.0]
[1643468579795,0.00252882,94.96,94.92,12.51]
[1643468580599,0.00252882,94.96,94.921,0.25]
[1643468581000,0.00252882,94.96,94.92,12.51]
[1643468581397,0.00252882,94.96,94.888,103.0]
[1643468581599,0.00252882,94.96,94.91,12.51]
[1643468583804,0.00252882,94.96,94.91,24.76]
[1643468584602,0.39745604,94.988,94.911,0.25]
[1643468584804,0.39745604,94.988,94.91,27.35905493]
[1643468585204,0.00745604,94.988,94.912,2.59905493]
[1643468585407,0.00745604,94.988,94.92,156.39]
[1643468585606,0.00745604,94.988,94.93,18.51]
[1643468585809,0.00745604,94.988,94.938,0.32332821]
[1643468586011,0.00745604,94.988,94.941,6.0]
[1643468586312,0.0008158,95.018,94.943,65.0]
[1643468586509,0.0008158,95.018,94.953,6.0]
[1643468586708,0.0008158,95.018,94.96,156.39]
[1643468586909,0.0008158,95.018,94.97,12.51]
[1643468587107,0.0008158,95.018,94.98,156.39]
[1643468587311,0.0008158,95.018,94.994,0.3150664]
[1643468587507,0.0016316,95.018,95.0,162.39]
[1643468587707,0.0016316,95.018,95.01,168.9]
[1643468587912,0.0016316,95.018,95.011,0.25]
[1643468588307,0.0016316,95.018,95.012,32.75659348]
[1643468588510,0.0016316,95.018,95.012,35.35564841]
[1643468588813,0.0016316,95.018,95.013,34.10564841]
[1643468589008,15.774,95.21,95.018,65.0]
[1643468589209,15.774,95.21,95.04,156.39]
[1643468589408,15.774,95.21,95.05,12.51]
[1643468589609,2.95669142,95.201,95.05,18.51]
[1643468589808,45.92849956,95.182,95.05,18.51]
[1643468590014,45.92849956,95.182,95.051,6.0]
[1643468590217,45.92849956,95.182,95.06,6.0]
[1643468590413,45.92849956,95.182,95.07,12.51]
[1643468590812,45.92849956,95.182,95.071,0.25]
[1643468592012,45.92849956,95.182,95.07,12.51]
[1643468592312,3.20669142,95.181,95.04,12.51]
[1643468592513,3.20669142,95.181,95.03,12.51]
[1643468592712,18.73369142,95.18,95.03,12.51]
[1643468592912,26.65608125,95.18,94.96,156.39]
[1643468593111,10.87908125,95.179,95.01,12.51]
[1643468593533,10.87908125,95.178,95.01,12.51]
[1643468593939,12.51,95.17,95.01,12.51]
[1643468594136,15.791,95.13,95.01,12.51]
[1643468594336,43.25894369,95.129,95.01,12.51]
[1643468595136,15.793,95.1,95.03,12.51]
[1643468595334,35.51818026,95.099,95.03,12.51]
[1643468595534,35.51818026,95.099,94.978,22.07577637]
[1643468595735,35.51818026,95.099,94.97,12.51]
[1643468596135,15.794,95.08,94.97,12.51]
[1643468596336,34.67320683,95.079,94.97,12.51]
[1643468596739,0.25,95.078,94.914,191.5515]
[1643468596935,3.20669142,95.078,94.94,12.51]
[1643468597136,3.20669142,95.078,94.924,6.0]
[1643468597442,15.802,95.05,94.894,2.59172016]
[1643468597635,33.83826069,95.049,94.9,12.51]
[1643468597837,36.79495211,95.049,94.9,12.51]
[1643468598047,9.8745565,95.048,94.9,12.51]
[1643468598237,9.8745565,95.048,94.88,12.51]
[1643468598637,9.8745565,95.068,94.901,2.59172016]
[1643468598838,12.51,95.11,94.913,61.8]
[1643468599040,22.6918,95.115,94.924,61.8]
[1643468599238,22.6918,95.115,94.93,12.51]
[1643468599439,22.6918,95.115,94.934,6.0]
[1643468599638,42.02059255,95.114,94.941,103.0]
[1643468599846,42.02059255,95.114,94.95,12.51]
[1643468600040,42.02059255,95.114,94.96,6.0]
[1643468600238,42.02059255,95.114,94.961,0.25]
[1643468600441,130.16778109,95.118,94.97,12.51]
[1643468600639,130.16778109,95.118,94.98,6.0]
[1643468600845,128.66778109,95.118,94.99,12.51]
[1643468601042,128.66778109,95.118,95.0,6.0]
[1643468601349,128.66778109,95.118,95.01,12.51]
[1643468601542,23.8064,95.207,95.02,6.0]
[1643468601739,145.2779935,95.192,95.03,12.51]
[1643468602141,15.777,95.19,95.04,6.0]
[1643468602340,15.777,95.19,95.05,12.51]
[1643468602639,145.2779935,95.192,95.06,6.0]
[1643468602840,145.2779935,95.192,95.07,12.51]
[1643468603041,145.2779935,95.192,95.08,6.0]
[1643468603240,145.2779935,95.192,95.09,12.51]
[1643468603641,4.07936355,95.284,95.1,6.0]
[1643468603842,4.07936355,95.284,95.091,2.59172016]
[1643468604042,2.95669142,95.212,95.062,10.65172153]
[1643468604240,2.95669142,95.212,95.09,12.51]
[1643468604541,12.51,95.25,95.08,12.51]
[1643468604741,5.3978229,95.274,95.044,2.59172016]
[1643468604742,15.778,95.18,95.044,2.59172016]
[1643468604941,15.778,95.18,95.031,21.8944986]
[1643468604942,40.87773905,95.179,95.05,12.51]
[1643468605141,41.12773905,95.179,95.04,12.51]
[1643468605340,44.08443047,95.179,94.98,156.39]
[1643468605542,41.12773905,95.179,95.012,20.06242751]
[1643468605741,15.779,95.17,95.02,12.51]
[1643468606143,15.779,95.17,95.031,103.0]
[1643468606340,15.779,95.17,95.04,12.51]
[1643468606546,15.779,95.17,95.05,6.0]
[1643468606741,2.72965238,95.169,95.06,12.51]
[1643468607142,0.25,95.168,95.06,12.51]
[1643468607342,0.25,95.168,95.061,103.25]
[1643468607642,15.782,95.16,95.06,12.51]
[1643468607842,40.6952329,95.158,95.06,12.51]
[1643468608042,2.72871921,95.157,95.06,12.51]
[1643468608342,2.72871921,95.157,95.04,12.51]
[1643468608541,2.72871921,95.157,95.0,12.51]
[1643468608744,15.784,95.15,95.0,12.51]
[1643468608943,2.72871921,95.149,94.992,23.5859]
[1643468609147,52.648,95.12,94.992,23.5859]
[1643468609342,35.98133982,95.119,94.992,23.5859]
[1643468609542,2.72871921,95.118,94.992,23.5859]
[1643468610145,15.795,95.11,94.992,23.5859]
[1643468610345,2.72871921,95.118,95.0,12.51]
[1643468610542,2.72871921,95.109,95.001,103.0]
[1643468610743,2.72871921,95.118,95.001,0.25]
[1643468611043,15.79,95.11,94.992,23.5859]
[1643468611243,2.72871921,95.109,94.992,23.5859]
[1643468611644,45.76033715,95.099,94.992,23.5859]
[1643468612043,2.72871921,95.098,94.993,105.58440182]
[1643468612243,4.07936355,95.13,94.993,2.58440182]
[1643468612445,4.07936355,95.13,94.994,2.58440182]
[1643468612644,4.07936355,95.13,94.992,23.5859]
[1643468612843,4.07936355,95.13,94.993,0.25]
[1643468613048,38.48333154,95.129,94.993,0.25]
[1643468613243,38.48333154,95.129,94.992,23.5859]
[1643468613443,38.48333154,95.129,94.99,12.51]
[1643468613444,15.788,95.12,94.99,12.51]
[1643468613643,2.72871921,95.119,94.94,12.51]
[1643468613843,42.18046061,95.079,94.94,12.51]
[1643468614044,2.72871921,95.078,94.94,12.51]
[1643468614545,15.799,95.07,94.941,105.58440182]
[1643468614743,15.799,95.07,94.94,12.51]
[1643468614946,2.72871921,95.069,94.94,12.51]
[1643468615548,15.799,95.05,94.94,12.51]
[1643468615749,35.9261899,95.049,94.94,12.51]
[1643468615958,2.74088402,95.048,94.89,12.51]
[1643468616172,2.74088402,95.048,94.87,12.51]
[1643468616355,12.50205163,95.048,94.857,103.0]
[1643468616553,12.50205163,95.048,94.854,2.58440182]
[1643468616554,0.30212817,95.038,94.854,2.58440182]
[1643468616756,40.71861499,94.999,94.83,12.51]
[1643468616956,52.718,94.98,94.83,12.51]
[1643468617154,36.54659568,94.979,94.83,12.51]
[1643468617354,36.54659568,94.979,94.831,2.58424109]
[1643468618056,36.54659568,94.979,94.832,17.86315974]
[1643468618255,36.54659568,94.979,94.833,0.25]
[1643468618459,36.54659568,94.979,94.842,6.0]
[1643468618661,36.54659568,94.979,94.85,12.51]
[1643468618955,15.812,94.97,94.86,12.51]
[1643468619156,15.812,94.97,94.87,12.51]
[1643468619360,15.812,94.97,94.871,0.25]
[1643468619557,15.812,94.97,94.87,12.51]
[1643468619758,15.812,94.97,94.833,2.58424109]
[1643468619958,15.812,94.97,94.827,103.0]
[1643468620363,15.812,94.97,94.84,12.51]
[1643468620564,15.808,95.0,94.85,6.0]
[1643468620760,15.808,95.0,94.861,103.0]
[1643468621159,15.808,95.0,94.871,6.0]
[1643468621358,32.72843493,94.999,94.88,12.51]
[1643468621763,0.25,94.998,94.881,0.25]
[1643468621961,0.25,94.998,94.88,12.51]
[1643468622162,15.811,94.98,94.858,2.58424109]
[1643468622365,41.76211438,94.979,94.84,12.51]
[1643468622759,41.76211438,94.979,94.841,2.58424109]
[1643468623364,41.76211438,94.979,94.841,14.14379595]
[1643468623763,41.76211438,94.979,94.841,11.55955486]
[1643468623964,15.813,94.97,94.841,11.55955486]
[1643468624664,15.813,94.97,94.842,103.0]
[1643468625072,15.813,94.97,94.843,2.83424109]
[1643468625664,15.813,94.97,94.842,11.55955486]
[1643468625861,15.813,94.97,94.824,2.58424109]
[1643468626063,15.813,94.97,94.821,103.0]
[1643468626265,15.818,94.94,94.821,103.0]
[1643468626464,39.13402063,94.939,94.821,103.0]
[1643468626663,0.25,94.969,94.821,103.0]
[1643468626863,12.51,95.01,94.822,14.39379595]
[1643468627063,16.58936355,95.03,94.832,6.0]
[1643468627265,2.72014308,95.029,94.84,12.51]
[1643468627666,35.61649611,95.028,94.85,6.0]
[1643468627866,41.62477197,94.989,94.86,12.51]
[1643468628164,41.62477197,94.989,94.85,12.51]
[1643468629067,0.25,94.988,94.83,12.51]
[1643468629970,15.814,94.96,94.831,14.14379595]
[1643468630165,32.98389112,94.973,94.831,14.14379595]
[1643468630365,32.98389112,94.973,94.83,12.51]
[1643468630366,32.98389112,94.973,94.832,135.25695569]
[1643468630567,32.98389112,94.973,94.842,6.0]
[1643468630769,32.98389112,94.973,94.85,12.51]
[1643468631176,32.98389112,94.973,94.851,103.0]
[1643468631567,15.813,94.97,94.851,103.0]
[1643468632167,15.813,94.97,94.852,0.25]
[1643468632374,15.813,94.97,94.851,103.0]
[1643468632570,15.813,94.97,94.85,12.51]
[1643468632771,15.813,94.97,94.83,12.51]
[1643468632971,2.95669142,94.969,94.806,23.7459]
[1643468633172,45.25241635,94.929,94.806,23.7459]
[1643468633375,15.825,94.93,94.806,23.7459]
[1643468633573,15.825,94.93,94.82,12.51]
[1643468634376,42.41726748,94.929,94.82,12.51]
[1643468634578,42.41726748,94.929,94.821,103.0]
[1643468634804,42.41726748,94.929,94.82,12.51]
[1643468635006,15.821,94.92,94.82,12.51]
[1643468636206,0.25,94.919,94.82,12.51]
[1643468637009,15.824,94.9,94.82,12.51]
[1643468637207,37.93801794,94.899,94.82,12.51]
[1643468637609,37.93801794,94.899,94.772,49.2043]
[1643468637804,37.93801794,94.899,94.77,12.51]
[1643468638004,37.93801794,94.899,94.75,12.51]
[1643468638207,37.93801794,94.899,94.767,0.30570196]
[1643468638407,0.25,94.898,94.767,0.30570196]
[1643468639010,15.826,94.89,94.767,0.30570196]
[1643468639408,103.0,94.889,94.767,0.30570196]
[1643468639809,116.78169236,94.889,94.767,0.30570196]
[1643468640009,10.37007901,94.888,94.767,0.30570196]
[1643468640213,15.836,94.86,94.767,0.30570196]
[1643468640418,33.6129248,94.859,94.767,0.30570196]
[1643468641312,15.84,94.84,94.767,0.30570196]
[1643468641615,37.25061453,94.839,94.767,0.30570196]
[1643468642211,12.51,94.88,94.767,0.30570196]
[1643468642410,15.83,94.86,94.767,0.30570196]